bitfinex/quotes_ETHUSD_20241223
["timestamp","ask_amount","ask_price","bid_price","bid_amount"]
[1734915134355,1.5257,3257.8,3256.3,1.5441]
[1734915134505,1.5257,3257.8,3256.6,0.60670922]
[1734915134705,0.0389522,3257.7,3256.6,3.67738922]
[1734915134953,0.0389522,3257.7,3256.8,8.98]
[1734915135110,3.06955,3257.9,3256.8,8.98]
[1734915135312,0.03899235,3257.6,3256.8,8.98]
[1734915135638,0.03895488,3257.5,3256.8,10.09308092]
[1734915135810,1.5257,3258.1,3256.8,10.09308092]
[1734915136014,0.03899577,3258.0,3257.0,3.0703]
[1734915136622,1.5257,3258.1,3256.9,8.98]
[1734915136623,4.59501,3258.1,3256.9,8.98]
[1734915136824,0.03901917,3258.0,3256.9,8.98]
[1734915137029,0.15647192,3257.9,3256.9,8.98]
[1734915137229,0.03895015,3257.8,3256.9,8.98]
[1734915137538,1.5257,3258.1,3256.9,8.98]
[1734915137865,0.03898407,3258.0,3256.9,8.98]
[1734915138039,0.03898407,3258.0,3257.0,3.0]
[1734915138240,1.537,3258.9,3257.8,3.48503751]
[1734915138436,1.26203746,3259.2,3258.3,3.48503751]
[1734915138639,1.26203746,3259.2,3258.4,3.06895]
[1734915138839,1.26203746,3259.2,3258.3,12.46503751]
[1734915139065,0.03295689,3259.1,3258.5,0.60124957]
[1734915139268,1.26203746,3259.4,3258.5,0.60124957]
[1734915139445,1.26203746,3259.4,3258.4,12.04897]
[1734915139626,0.03299078,3259.3,3258.4,10.338867]
[1734915139827,0.03299078,3259.3,3258.6,3.06879]
[1734915140058,1.26203746,3259.4,3258.4,10.338867]
[1734915140392,0.03290305,3259.3,3258.4,8.98]
[1734915141189,1.537,3259.7,3258.4,8.98]
[1734915141389,0.03288413,3259.2,3258.5,3.06886]
[1734915141566,1.537,3259.7,3258.4,8.98]
[1734915141727,4.537,3259.7,3258.4,12.04896]
[1734915141930,0.79447225,3259.6,3258.4,13.407826]
[1734915142546,3.86235225,3259.6,3258.4,10.338866]
[1734915142863,0.79447225,3259.6,3258.4,10.338866]
[1734915143080,0.03400125,3259.6,3258.4,13.407836]
[1734915143442,0.03400125,3259.6,3258.8,3.06856]
[1734915143770,1.537,3259.7,3258.9,3.06845]
[1734915143949,1.537,3259.7,3259.0,1.5525]
[1734915144153,1.537,3259.7,3259.1,1.360095]
[1734915144754,1.5906,3260.8,3259.1,10.340095]
[1734915144939,1.5906,3260.3,3259.1,10.340095]
[1734915145368,0.03418327,3260.2,3259.1,10.340095]
[1734915145676,1.5906,3260.3,3259.1,10.340095]
[1734915145882,0.03418327,3260.2,3259.2,1.4960965]
[1734915146236,0.03418327,3260.2,3259.4,0.61901836]
[1734915147079,0.03418327,3260.2,3259.5,1.5019]
[1734915147283,3.0,3260.5,3259.5,1.5019]
[1734915147439,0.03406894,3260.4,3259.5,1.5019]
[1734915147636,3.06731,3260.2,3259.4,0.61901836]
[1734915147837,3.0676,3259.9,3259.4,0.61901836]
[1734915148139,0.03439367,3259.8,3259.1,8.98]
[1734915148363,0.03439367,3259.8,3259.2,0.62086122]
[1734915148677,0.03435483,3259.7,3259.2,0.62086122]
[1734915148979,4.65804,3260.1,3259.2,0.62086122]
[1734915149180,0.03434957,3259.6,3259.2,0.62086122]
[1734915149375,0.15906,3260.0,3259.2,0.62086122]
[1734915149839,0.03441796,3259.9,3259.2,0.62086122]
[1734915150473,0.15906,3260.0,3259.2,0.62086122]
[1734915150775,0.20938396,3259.9,3259.2,0.62086122]
[1734915151587,0.03441796,3259.9,3259.2,0.62086122]
[1734915151953,3.0675,3260.0,3259.2,0.62086122]
[1734915152284,0.03443116,3259.9,3259.2,0.62086122]
[1734915153160,1.5906,3260.1,3258.8,1.6468]
[1734915153518,1.5375,3259.7,3258.6,8.98]
[1734915153644,0.15375,3259.6,3258.5,1.5567]
[1734915153847,3.0,3259.4,3258.3,8.98]
[1734915154156,3.0,3259.4,3257.6,3.06965]
[1734915154157,3.06881,3258.6,3257.6,10.6247]
[1734915154348,3.06919,3258.2,3257.1,1.6447]
[1734915154704,0.03409713,3258.1,3257.1,2.95667814]
[1734915154849,3.06919,3258.2,3257.1,2.95667814]
[1734915155235,1.591,3258.5,3257.5,0.61135665]
[1734915155544,3.10273968,3258.4,3257.5,0.61135665]
[1734915155748,0.50312365,3258.4,3257.5,0.61135665]
[1734915156796,3.06945,3258.0,3257.4,0.62327417]
[1734915156998,3.06945,3258.0,3257.2,8.98]
[1734915157149,0.03315294,3257.9,3257.2,8.98]
[1734915157492,0.03315294,3257.9,3257.2,9.58478358]
[1734915158696,3.06921,3258.2,3257.2,9.58478358]
[1734915158999,0.03325734,3258.1,3257.2,9.58478358]
[1734915159574,3.0694,3258.0,3257.2,9.58478358]
[1734915159879,0.03324098,3257.9,3257.2,9.58478358]
[1734915160804,1.592,3257.1,3256.3,8.98]
[1734915161015,3.07052,3256.8,3256.2,1.5178]
[1734915161304,3.10362437,3256.7,3255.8,1.5974]
[1734915161674,0.03303437,3256.7,3255.9,0.6237571]
[1734915161881,1.592,3257.1,3255.9,0.6237571]
[1734915162077,0.03260545,3257.0,3255.9,3.6950271]
[1734915162477,0.03260545,3257.0,3255.9,0.6237571]
[1734915162719,3.07032,3257.0,3255.9,0.6237571]
[1734915162927,3.536552,3257.0,3255.9,0.6237571]
[1734915163092,0.033381,3256.9,3255.9,0.6237571]
[1734915163427,3.07063,3256.7,3255.9,0.6237571]
[1734915163785,0.03333009,3256.6,3255.9,0.6237571]
[1734915164385,1.592,3257.1,3255.9,0.6237571]
[1734915164583,1.592,3257.1,3256.0,0.52925871]
[1734915164928,0.03336574,3257.0,3255.9,3.6950871]
[1734915165084,0.03336574,3257.0,3256.0,8.98]
[1734915166525,3.10367574,3257.0,3256.0,8.98]
[1734915166676,0.03336574,3257.0,3256.0,12.05121]
[1734915166879,0.03336574,3257.0,3256.0,8.98]
[1734915167139,0.03336574,3257.0,3256.1,0.96037571]
[1734915167629,3.10371574,3257.0,3256.1,0.96037571]
[1734915167865,3.07049,3256.8,3256.0,8.98]
[1734915168045,3.07087,3256.4,3255.8,1.5974]
[1734915168240,3.07128,3256.0,3255.3,1.6581]
[1734915168537,3.07128,3256.0,3254.6,3.07248]
[1734915168538,3.47720482,3255.7,3254.8,0.60405015]
[1734915168834,0.03311146,3255.9,3254.8,0.60405015]
[1734915168978,1.5733,3256.0,3254.8,0.60405015]
[1734915168979,0.03267549,3255.6,3255.0,3.07217]
[1734915169186,0.03270653,3255.8,3255.5,3.0717]
[1734915169396,1.5652,3256.7,3255.7,1.5872]
[1734915169634,3.47720482,3256.3,3255.6,8.98]
[1734915169792,5.04240482,3256.7,3255.6,8.98]
[1734915170000,5.04240482,3256.7,3255.4,1.5872]
[1734915170203,1.5652,3256.7,3255.4,1.5872]
[1734915170421,3.0,3256.8,3255.6,3.0716]
[1734915170598,7.68152,3257.0,3255.7,12.05149]
[1734915170835,3.0705,3256.8,3255.8,35.0]
[1734915170981,3.07077,3256.6,3255.7,8.98]
[1734915171185,7.68153,3257.0,3255.7,8.98]
[1734915171186,1.6399,3256.4,3255.7,8.98]
[1734915171434,3.07098,3256.3,3255.7,8.98]
[1734915171944,3.0,3256.4,3255.7,8.98]
[1734915172245,4.5036,3256.8,3255.7,12.05147]
[1734915172385,4.5036,3256.8,3255.7,13.256617]
[1734915173499,4.5036,3256.8,3255.8,0.61763882]
[1734915174132,4.5036,3256.8,3255.8,9.59763882]
[1734915174353,4.5036,3256.8,3255.8,8.98]
[1734915174491,3.07074,3256.6,3255.8,8.98]
[1734915174693,4.17589448,3256.6,3255.8,8.98]
[1734915175058,4.17589448,3256.6,3255.9,1.5155]
[1734915175337,3.0707,3256.6,3255.9,1.5155]
[1734915175934,3.0705,3256.8,3255.9,1.5155]
[1734915176094,3.0,3257.0,3255.9,1.5155]
[1734915176445,3.07075,3256.6,3255.9,1.5155]
[1734915176641,3.0705,3256.8,3255.9,2.56505]
[1734915177027,3.07069,3256.6,3255.9,2.56505]
[1734915177212,3.47720482,3257.5,3256.2,3.07105]
[1734915177545,2.91883746,3258.1,3257.0,3.07024]
[1734915177849,3.06936,3258.0,3257.1,10.4885]
[1734915177997,1.26203746,3258.1,3257.1,10.4885]
[1734915178350,3.06968,3257.7,3257.1,10.4885]
[1734915179558,1.5002,3257.6,3256.8,1.5085]
[1734915179709,3.07001,3257.4,3256.8,1.5085]
[1734915180128,1.5002,3257.6,3256.8,1.5085]
[1734915180456,3.06983,3257.5,3256.8,2.13012177]
[1734915180811,3.526833,3257.5,3256.8,1.5085]
[1734915180997,0.457003,3257.5,3256.5,1.5881]
[1734915181201,3.07,3257.4,3256.5,1.5881]
[1734915181536,3.0,3257.7,3256.5,1.5881]
[1734915181765,3.0,3258.1,3256.5,1.5881]
[1734915182211,3.0,3257.9,3257.0,1.6397]
[1734915182398,3.06939,3258.0,3257.0,3.008719]
[1734915183304,0.02720962,3257.9,3257.0,3.008719]
[1734915184552,0.02720962,3257.9,3257.0,1.6397]
[1734915184911,5.13560482,3258.2,3257.0,1.6397]
[1734915185115,1.6106,3257.5,3256.6,1.6638]
[1734915185334,3.0,3257.3,3256.2,2.2761164]
[1734915185631,3.07054,3256.8,3256.2,1.6638]
[1734915185944,3.09760373,3256.7,3256.2,1.6638]
[1734915186140,3.09760373,3256.7,3256.0,0.60481614]
[1734915186741,3.09760373,3256.7,3255.9,1.6638]
[1734915187328,3.5684241,3256.7,3255.9,1.6638]
[1734915187515,0.4978141,3256.7,3255.9,1.6638]
[1734915187722,1.6106,3256.8,3255.9,1.6638]
[1734915188079,3.0,3256.9,3254.7,3.379648]
[1734915188080,3.07135,3255.9,3254.9,10.6438]
[1734915188351,3.07178,3255.5,3254.9,1.6638]
[1734915188551,3.47720482,3256.2,3254.5,1.6638]
[1734915188552,1.6106,3255.6,3254.5,1.6638]
[1734915188703,3.07209,3255.2,3254.5,1.6638]
[1734915189142,5.14329,3255.6,3254.5,1.6638]
[1734915189143,2.07166,3255.6,3254.5,1.6638]
[1734915189302,3.07186,3255.4,3254.5,1.6638]
[1734915189505,3.07186,3255.4,3254.5,2.2767055]
[1734915189751,3.07186,3255.4,3254.5,0.6129055]
[1734915189939,3.0723,3254.9,3254.0,8.98]
[1734915190251,3.0723,3254.9,3254.1,0.6171477]
[1734915190555,3.0723,3254.9,3254.0,8.98]
[1734915191208,3.07221,3255.0,3254.0,9.60876763]
[1734915191424,3.07234,3254.9,3254.1,0.96087676]
[1734915191617,3.07261,3254.6,3253.7,8.98]
[1734915191849,3.07261,3254.6,3253.8,0.61425808]
[1734915192034,4.917786,3255.3,3253.8,0.61425808]
[1734915192035,3.07236,3254.9,3253.8,0.61425808]
[1734915192246,3.07239,3254.8,3253.9,0.95942581]
[1734915192735,3.07259,3254.6,3253.9,0.95942581]
[1734915193187,3.07242,3254.8,3253.9,0.95942581]
[1734915193486,3.0721,3255.1,3253.8,0.61425808]
[1734915193785,3.0721,3255.1,3253.7,8.98]
[1734915193786,3.07258,3254.6,3253.7,8.98]
[1734915194188,3.0,3254.8,3253.7,9.58220778]
[1734915194489,6.07238,3254.8,3253.7,9.58220778]
[1734915194653,4.14668908,3255.2,3253.7,9.58220778]
[1734915194858,3.07248,3254.7,3253.7,9.58220778]
[1734915195278,3.0728,3254.4,3253.6,1.6638]
[1734915195465,1.5872,3254.8,3253.6,1.6638]
[1734915195985,4.65958,3254.8,3253.6,2.28933263]
[1734915196147,1.5872,3254.8,3253.6,0.62553263]
[1734915196348,3.07295,3254.2,3253.4,8.98]
[1734915196649,3.0,3254.5,3253.4,8.98]
[1734915196879,3.07304,3254.2,3253.4,8.98]
[1734915197079,3.0,3254.5,3253.4,8.98]
[1734915197310,3.07305,3254.1,3253.1,1.58204986]
[1734915197611,4.967555,3254.1,3253.2,0.63063977]
[1734915197916,4.66025,3254.1,3253.2,0.63063977]
[1734915198470,1.5872,3254.1,3253.2,0.63063977]
[1734915199307,1.5872,3254.9,3253.4,8.98]
[1734915199466,3.07238,3254.8,3253.5,4.652]
[1734915199663,4.5872,3254.9,3253.7,3.07341]
[1734915200231,4.5872,3254.9,3253.5,1.5784]
[1734915200407,3.0724,3254.8,3253.5,4.65199]
[1734915200713,0.76596,3254.7,3253.6,1.363199]
[1734915200879,3.07276,3254.4,3253.5,1.5784]
[1734915201078,4.67795,3254.1,3253.2,1.5392]
[1734915201904,2.37086,3254.7,3253.3,1.6135]
[1734915202108,6.07259,3254.6,3253.4,0.22419056]
[1734915202258,1.6049,3254.7,3253.4,0.22419056]
[1734915202461,1.6049,3254.7,3253.6,3.07348]
[1734915202660,1.6049,3254.7,3253.8,3.07331]
[1734915202862,3.0,3254.9,3253.9,1.6135]
[1734915203076,4.5704,3255.0,3253.9,1.6135]
[1734915203286,3.0,3254.9,3253.9,1.6135]
[1734915203819,1.5704,3255.0,3254.1,0.6131447]
[1734915204175,2.02744,3255.0,3254.1,0.6131447]
[1734915204375,3.0,3254.9,3254.1,0.6131447]
[1734915205018,3.07285,3254.4,3253.6,1.5646]
[1734915205216,3.07315,3254.0,3253.2,1.5646]
[1734915205387,0.307315,3253.9,3253.2,1.5646]
[1734915205593,4.68171,3254.3,3253.2,2.18020614]
[1734915205806,3.07296,3254.2,3253.2,2.18020614]
[1734915206133,3.07277,3254.4,3253.2,2.18020614]
[1734915206296,6.07269,3254.5,3253.3,3.07377]
[1734915206929,3.0,3254.5,3253.3,3.07377]
[1734915207102,3.07277,3254.4,3253.3,12.05377]
[1734915207310,3.07295,3254.2,3253.3,9.5057626]
[1734915207490,3.07307,3254.1,3253.3,8.98]
[1734915207815,3.07286,3254.3,3253.3,8.98]
[1734915208260,3.80860048,3254.5,3253.3,8.98]
[1734915208415,3.80860048,3254.5,3253.4,4.18971061]
[1734915208613,1.6088,3254.7,3253.5,13.61811]
[1734915208819,5.08600482,3255.0,3253.5,10.5446]
[1734915209803,3.07242,3254.8,3253.8,0.62106755]
[1734915210344,3.07242,3254.8,3253.9,1.5562]
[1734915210556,4.71742,3255.3,3254.2,10.5362]
[1734915211006,4.6697,3255.6,3254.2,10.5362]
[1734915211205,4.6697,3255.6,3254.5,1.5091]
[1734915211605,3.7861124,3256.7,3254.4,3.07267]
[1734915211606,1.598,3256.2,3254.6,10.4891]
[1734915211848,3.07116,3256.1,3254.9,3.07226]
[1734915212342,2.21128831,3256.2,3254.8,1.5091]
[1734915212549,1.598,3256.2,3255.3,1.5104]
[1734915212749,1.26203746,3256.3,3255.4,3.07181]
[1734915212915,7.23285493,3256.6,3255.3,1.5104]
[1734915212916,4.70878,3256.6,3255.3,1.5104]
[1734915213117,1.6381,3256.6,3255.3,1.5104]
[1734915213618,3.07088,3256.4,3255.3,1.5104]
[1734915213927,4.70888,3256.6,3255.3,1.5104]
[1734915214265,3.0,3256.5,3255.3,1.5104]
[1734915214556,3.07106,3256.2,3255.3,1.5104]
[1734915215063,3.0,3256.6,3255.4,3.07178]
[1734915215221,6.54750482,3257.1,3255.9,1.5945]
[1734915215423,6.54750482,3257.1,3255.9,4.66581]
[1734915215424,0.65475048,3257.0,3255.9,4.66581]
[1734915215621,1.26203746,3257.4,3256.1,1.5945]
[1734915215833,1.26203746,3257.4,3256.2,12.05105]
[1734915216068,1.26203746,3257.4,3256.3,8.98]
[1734915216269,1.26203746,3257.4,3256.5,1.5093]
[1734915216762,3.07006,3257.3,3256.5,1.5093]
[1734915217541,3.07013,3257.2,3256.5,1.5093]
[1734915217728,0.307006,3257.3,3256.5,1.5093]
[1734915217929,3.06991,3257.5,3256.5,1.5093]
[1734915218356,1.6355,3257.6,3256.5,1.5093]
[1734915218561,3.07019,3257.2,3256.5,1.5093]
[1734915218786,3.0,3257.4,3256.5,1.5093]
[1734915219011,1.534,3257.9,3256.6,8.98]
[1734915219148,5.13260482,3258.3,3257.1,1.5188]
[1734915220198,5.13260482,3258.3,3256.8,10.4988]
[1734915220199,3.06917,3258.2,3256.8,10.4988]
[1734915220401,3.06976,3257.6,3256.8,10.4988]
[1734915220698,3.06965,3257.7,3256.8,10.4988]
[1734915220897,0.02709463,3257.5,3256.8,10.4988]
[1734915221043,3.07013,3257.2,3256.8,8.98]
[1734915221252,3.07013,3257.2,3256.0,3.0]
[1734915221253,3.07024,3257.1,3256.2,1.6614]
[1734915221562,3.07037,3257.0,3256.2,1.6614]
[1734915221766,0.02712487,3256.9,3256.2,1.6614]
[1734915224371,1.6331,3257.1,3256.2,1.6614]
[1734915224604,0.0271079,3256.8,3256.2,1.6614]
[1734915224915,4.70331,3257.1,3256.2,1.6614]
[1734915225079,0.02709092,3256.7,3256.2,1.6614]
[1734915225283,3.06961,3257.8,3256.5,1.5088]
[1734915225493,3.06961,3257.8,3256.7,1.5088]
[1734915225672,0.03101127,3257.7,3256.7,1.5088]
[1734915225868,3.06961,3257.8,3256.7,1.5088]
[1734915226113,1.6503,3257.9,3256.7,1.5088]
[1734915226274,2.15323083,3257.9,3256.7,1.5088]
[1734915226476,0.02701947,3257.8,3256.9,0.62156321]
[1734915227021,3.06967,3257.7,3256.9,0.62156321]
[1734915227368,0.02710859,3257.6,3256.9,0.62156321]
[1734915227617,0.02710859,3257.6,3256.8,8.98]
[1734915227618,3.06994,3257.4,3256.8,8.98]
[1734915228110,0.0270577,3257.3,3256.8,8.98]
[1734915228736,0.0270577,3257.3,3256.8,10.08917122]
[1734915229019,5.22274083,3257.9,3256.8,10.08917122]
[1734915229020,3.06957,3257.8,3256.8,10.08917122]
[1734915229227,0.02706124,3257.2,3256.8,10.08917122]
[1734915229529,3.06957,3257.8,3256.8,10.08917122]
[1734915229925,0.02706872,3257.7,3256.8,13.15964122]
[1734915230104,0.02706872,3257.7,3256.9,1.22815631]
[1734915230281,3.06936,3258.0,3256.9,1.22815631]
[1734915230476,0.0270957,3257.6,3256.9,1.22815631]
[1734915230709,7.58638,3258.2,3256.9,1.22815631]
[1734915230924,0.02711214,3257.5,3256.9,1.22815631]
[1734915231128,7.58638,3258.2,3257.1,1.5307]
[1734915231329,0.02712153,3257.4,3257.1,1.5307]
[1734915231542,3.06932,3258.1,3257.1,1.5307]
[1734915231846,0.02710457,3257.3,3257.1,1.5307]
[1734915232045,3.0,3258.6,3255.7,8.98]
[1734915232046,4.5172,3257.8,3255.7,8.98]
[1734915232250,4.5172,3257.8,3255.9,8.98]
[1734915232251,3.07033,3257.0,3255.9,8.98]
[1734915232404,3.07041,3256.9,3255.9,8.98]
[1734915232603,3.09767741,3256.9,3255.9,8.98]
[1734915232906,3.09767741,3256.9,3256.1,0.62854841]
[1734915233118,1.5172,3257.1,3256.1,0.62854841]
[1734915233744,3.07031,3257.0,3256.1,0.62854841]
[1734915233919,3.07042,3256.9,3256.1,0.62854841]
[1734915234258,3.0,3256.9,3255.8,1.5307]
[1734915234419,1.525,3256.6,3255.1,10.5366]
[1734915234612,3.07078,3256.5,3255.3,0.61588399]
[1734915234817,1.525,3256.6,3255.4,1.5566]
[1734915235154,3.07059,3256.7,3255.5,3.07172]
[1734915235964,3.0,3256.9,3255.7,8.98]
[1734915236262,3.0,3256.9,3255.9,1.561]
[1734915236922,4.59098,3257.0,3255.9,1.561]
[1734915236923,1.5206,3257.0,3255.9,1.561]
[1734915237120,3.0,3256.9,3255.9,1.561]
[1734915237618,3.07061,3256.7,3255.9,1.561]
[1734915237852,3.0,3256.9,3255.9,1.561]
[1734915238153,3.0,3256.9,3255.8,8.98]
[1734915238388,3.07115,3256.2,3255.3,1.6183]
[1734915238591,3.0,3256.5,3255.3,1.6183]
[1734915238762,3.07116,3256.1,3255.3,1.6183]
[1734915238965,3.07116,3256.1,3255.3,2.21907655]
[1734915239488,3.07127,3256.0,3255.3,2.21907655]
[1734915242595,3.07155,3255.7,3255.0,1.6531]
[1734915242896,3.07229,3254.9,3254.6,1.6531]
[1734915243055,3.07239,3254.8,3254.1,0.6022529]
[1734915243434,4.5146,3255.2,3253.9,1.6531]
[1734915243592,3.07299,3254.2,3253.9,1.6531]
[1734915243889,3.07299,3254.2,3253.7,0.60981797]
[1734915243890,3.07304,3254.2,3253.7,0.60981797]
[1734915244047,3.47720482,3255.3,3253.7,9.58981797]
[1734915244394,3.0,3255.2,3254.0,1.6531]
[1734915244715,3.072,3255.3,3254.1,1.6531]
[1734915246100,4.821755,3255.6,3254.4,0.60329848]
[1734915246852,4.821755,3255.6,3254.2,8.98]
[1734915247070,3.0724,3254.8,3254.1,1.6531]
[1734915247275,3.07214,3255.1,3254.1,1.81841]
[1734915247654,3.07229,3254.9,3254.1,1.81841]
[1734915248151,3.07181,3255.4,3254.1,1.81841]
[1734915248398,3.07198,3255.3,3254.1,1.81841]
[1734915248603,3.07217,3255.1,3254.2,0.5515125]
[1734915248778,3.07226,3255.0,3254.1,1.81841]
[1734915249749,3.07175,3255.5,3254.3,1.6038]
[1734915249917,3.07132,3256.0,3254.4,1.6038]
[1734915250217,3.07172,3255.5,3254.4,1.6038]
[1734915250511,3.07165,3255.6,3254.5,1.6361]
[1734915250714,3.07165,3255.6,3254.6,0.470884]
[1734915250881,0.50357048,3256.0,3254.6,0.470884]
[1734915250882,3.07141,3255.9,3254.7,1.6361]
[1734915251084,0.50357048,3256.0,3254.8,1.6361]
[1734915251297,4.26203746,3256.2,3254.9,0.61228695]
[1734915251498,6.07125,3256.0,3254.8,1.6361]
[1734915251813,3.07225,3255.0,3254.3,1.5301]
[1734915252020,4.6277,3255.4,3254.3,1.5301]
[1734915252185,6.54880482,3255.7,3254.2,9.60305257]
[1734915252186,3.07158,3255.7,3254.5,1.5301]
[1734915252394,3.07163,3255.6,3254.6,1.358282]
[1734915252610,3.0,3255.9,3254.6,1.358282]
[1734915252784,4.5558,3256.0,3254.6,1.358282]
[1734915252985,3.07186,3255.4,3254.5,1.5301]
[1734915253586,3.07192,3255.3,3254.5,1.5301]
[1734915253805,3.07173,3255.5,3254.5,1.5301]
[1734915254086,3.07182,3255.4,3254.5,1.5301]
[1734915254407,4.5558,3256.0,3254.5,1.5301]
[1734915254408,3.07158,3255.7,3254.5,1.5301]
[1734915254610,3.07165,3255.6,3254.6,1.05101]
[1734915254809,3.07184,3255.4,3254.6,1.05101]
[1734915256543,3.07257,3254.6,3254.5,1.5301]
[1734915256697,3.0,3255.1,3254.0,1.5892]
[1734915257030,3.0,3255.3,3254.0,1.5892]
[1734915257201,0.64772048,3255.2,3254.0,1.74812]
[1734915257407,3.07235,3254.9,3254.0,1.74812]
[1734915259429,3.0724,3254.8,3254.0,1.74812]
[1734915259579,3.0,3255.3,3254.0,1.74812]
[1734915259783,3.07222,3255.0,3254.0,1.74812]
[1734915259984,3.07222,3255.0,3254.1,0.174812]
[1734915260416,3.07242,3254.8,3254.1,0.174812]
[1734915260597,3.07219,3255.1,3254.1,0.174812]
[1734915260799,3.0,3255.4,3254.3,10.5047]
[1734915261032,3.0,3255.7,3254.4,1.5247]
[1734915261217,3.07177,3255.5,3254.5,1.11342143]
[1734915261441,3.07177,3255.5,3254.6,1.6586]
[1734915261587,6.07154,3255.7,3254.6,1.6586]
[1734915261788,3.0,3255.5,3254.6,1.6586]
[1734915262225,3.07141,3255.9,3254.7,1.6586]
[1734915262431,3.07116,3256.1,3254.9,8.98]
[1734915262634,1.86910546,3256.4,3255.1,1.6586]
[1734915263640,1.86910546,3256.4,3255.4,0.62170076]
[1734915263843,1.86910546,3256.4,3255.1,1.6586]
[1734915263844,3.47720482,3256.2,3255.1,1.6586]
[1734915263996,3.07191,3255.3,3254.8,1.6586]
[1734915264195,3.07229,3254.9,3254.4,1.6586]
[1734915264398,3.07228,3255.0,3254.4,1.6586]
[1734915264594,1.5681,3255.8,3255.2,3.072]
[1734915264847,4.63875,3256.7,3255.4,1.6586]
[1734915265043,1.26203746,3256.4,3255.4,1.6586]
[1734915265210,1.26203746,3256.4,3255.4,3.0718]
[1734915265413,1.26203746,3256.4,3255.4,1.6586]
[1734915265747,4.33291746,3256.4,3255.5,0.50377]
[1734915265951,1.26203746,3256.4,3255.5,0.50377]
[1734915266133,1.26203746,3256.4,3255.7,3.68017766]
[1734915266330,3.07012,3257.2,3256.0,1.6586]
[1734915266533,4.33196746,3257.4,3256.1,8.98]
[1734915266716,2.38907031,3257.4,3256.3,1.6586]
[1734915266916,3.07071,3256.6,3256.3,1.6586]
[1734915267121,3.07087,3256.4,3256.0,1.6586]
[1734915268452,3.07099,3256.3,3256.0,1.6586]
[1734915269019,1.5681,3256.9,3256.0,1.6586]
[1734915269352,3.0,3257.0,3256.0,1.6586]
[1734915269645,3.07131,3256.0,3255.6,1.6227]
[1734915270405,3.07154,3255.7,3255.0,1.5642]
[1734915270649,1.664,3256.2,3255.1,0.60524996]
[1734915270816,3.23755,3256.1,3255.1,0.60524996]
[1734915271148,3.07132,3256.0,3255.1,9.58524996]
[1734915272235,1.5175,3256.5,3255.1,9.58524996]
[1734915272406,3.07175,3255.5,3255.0,1.5642]
[1734915273039,3.07182,3255.4,3255.0,1.5642]
[1734915273562,3.07163,3255.6,3255.0,1.5642]
[1734915274354,3.07174,3255.5,3255.0,1.5642]
[1734915274753,0.307174,3255.5,3254.6,8.98]
[1734915274987,3.07229,3254.9,3254.6,1.5679]
[1734915275285,3.07181,3255.4,3254.3,1.5423]
[1734915275459,3.07276,3254.4,3253.6,1.5423]
[1734915275799,3.07288,3254.3,3253.6,1.5423]
[1734915275957,3.07288,3254.3,3253.6,2.72236871]
[1734915276340,3.07288,3254.3,3253.9,0.62225529]
[1734915276655,3.07288,3254.3,3253.6,2.72236871]
[1734915277465,3.07314,3254.0,3253.6,1.5423]
[1734915277766,3.0727,3254.5,3253.6,1.5423]
[1734915278375,3.07276,3254.4,3253.6,1.5423]
[1734915279784,4.68366,3254.9,3253.6,1.5423]
[1734915279785,3.07289,3254.3,3253.6,1.5423]
[1734915281306,3.07256,3254.7,3253.6,1.5423]
[1734915281614,3.07299,3254.2,3253.6,1.5423]
[1734915283534,1.6589,3254.4,3253.3,1.6016]
[1734915283693,1.6589,3254.4,3253.0,1.6016]
[1734915283694,3.07314,3254.0,3253.0,1.6016]
[1734915284027,3.07356,3253.6,3252.5,2.21112907]
[1734915284324,3.07362,3253.5,3252.5,2.21112907]
[1734915284615,3.07381,3253.3,3252.5,2.21112907]
[1734915287740,3.07366,3253.5,3252.5,2.21112907]
[1734915288036,4.966214,3253.9,3252.5,37.21112907]
[1734915288242,3.07371,3253.4,3252.5,37.21112907]
[1734915288396,3.07382,3253.3,3252.5,37.21112907]
[1734915288594,3.07389,3253.2,3252.5,2.21112907]
[1734915289039,3.07389,3253.2,3252.5,1.6016]
[1734915289397,4.73939,3253.2,3252.5,1.6016]
[1734915290342,7.73939,3253.2,3253.1,9.86e-06]
[1734915290495,9.063329,3253.2,3253.1,9.86e-06]
[1734915291196,7.397829,3253.2,3253.1,9.86e-06]
[1734915291403,7.397829,3253.2,3252.4,6.86e-06]
[1734915291404,1.6111,3253.0,3252.4,6.86e-06]
[1734915291630,11.10245482,3252.5,3252.4,6.86e-06]
[1734915291830,12.2127003,3252.5,3252.4,6.86e-06]
[1734915292729,3.07435,3252.8,3252.4,6.86e-06]
[1734915293404,1.26203746,3253.0,3252.4,6.86e-06]
[1734915293826,3.0,3252.8,3252.4,6.86e-06]
[1734915294045,3.0,3252.9,3252.4,6.86e-06]
[1734915294203,3.07418,3252.9,3252.4,6.86e-06]
[1734915294404,2.80613746,3253.7,3252.4,6.86e-06]
[1734915294646,3.07372,3253.4,3252.4,6.86e-06]
[1734915294839,5.87963746,3253.7,3252.4,3.07461686]
[1734915295046,3.07353,3253.6,3252.5,1.6549]
[1734915295698,1.26203746,3253.7,3252.5,1.6549]
[1734915295903,1.26203746,3253.7,3252.8,1.647]
[1734915296146,1.26203746,3253.7,3253.0,1.5515]
[1734915296342,3.07301,3254.2,3253.1,10.5315]
[1734915296854,3.07301,3254.2,3253.2,1.5515]
[1734915297005,1.26203746,3254.6,3253.4,1.5515]
[1734915297204,1.26203746,3254.6,3253.6,1.6282]
[1734915297418,1.26203746,3254.6,3253.8,1.6282]
[1734915297935,3.0722,3255.0,3253.8,1.6282]
[1734915298134,1.26203746,3255.2,3254.2,8.98]
[1734915298319,1.26203746,3255.2,3254.3,12.05283]